{"text_format":"1","workbook":"xlsx","n_sheets":2,"sheets":["Feuil1","Référentiel"],"not_rendered":{"charts":0,"images":6,"macros":1,"external_links":0,"defined_names":108,"comments":1,"pivot_tables":0},"unopened":[],"bounds":{"document_bytes":16777216,"sheet_cells":100000,"rows_first":2000,"rows_last":500,"rows_between":2000,"halvings":0,"cell_chars":16384,"cell_head_chars":4096},"cells_cut":0,"cells_raw":0,"read":"whole","date_system":"1900"}

{"sheet":"Feuil1","index":0,"n_rows":38,"n_cols":24,"rows_kept":38,"cut":false,"hidden":false,"merged":[]}
[null,null,"Fiche évaluation DNB",null,null,null,"APSA:","Gymnastique rythmique"]
[null,"Classe/Groupe",null,null,null,null,"Professeur:",null,null,null,null,null,null,null,null,null,null,null,null,null,null,null,null,"C:\\Users\\GERARD HOLDER EPS\\Documents\\fiches compatibles pack EPS\\Nouveau dossier\\macros2"]
[null,null,null,null,null,null,null,null,null,null,null,null,null,null,null,null,null,null,null,null,null,null,null,"C:\\Users\\GERARD HOLDER EPS\\Documents\\fiches compatibles pack EPS\\Nouveau dossier\\macros2\\Fiche évaluation DNB Gymnastique rythmique  .pdf"]
[]
[null,"Nom- Prénom","Sexe","Classe","Note","Cotation","Qualité de l'enchainement (projet collectif) /8 points","Note de projet collectif /8 points","Qualité d'exécution /8 Points","Efficacité dans le rôle de juge /4 points ",null,null,"A",1,null,"L'enchaînement présente une juxtaposition d'éléments",null,null,null,"La centration sur l'engin organise l'activité du gymnaste",null,null,"Le jugement est partiel"]
[1,null,null,null,{"$f":"IF(F6=\"\",\"\",H6+I6+J6)","v":""},null,null,{"$f":"IF(AND(F6=\"\",G6=\"\"),\"\",IF(F6=\"\",\"affecter une cotation\",(G6*(INDEX($N$5:$N$8,MATCH(F6,$M$5:$M$8,0))))))","v":""},null,null,null,null,"B",0.9,null,0,null,null,null,0,null,null,0]
[2,null,null,null,{"$f":"IF(F7=\"\",\"\",H7+I7+J7)","v":""},null,null,{"$f":"IF(AND(F7=\"\",G7=\"\"),\"\",IF(F7=\"\",\"affecter une cotation\",(G7*(INDEX($N$5:$N$8,MATCH(F7,$M$5:$M$8,0))))))","v":""},null,null,null,null,"C",0.8,null,0.5,null,null,null,0.5,null,null,0.5]
[3,null,null,null,"",null,null,"",null,null,null,null,"D",0.7,null,1,null,null,null,1,null,null,1]
[4,null,null,null,"",null,null,"",null,null,null,null,null,null,null,1.5,null,null,null,1.5,null,null,1.5]
[5,null,null,null,"",null,null,"",null,null,null,null,null,null,null,2,null,null,null,2,null,null,"Le jugement est argumenté"]
[6,null,null,null,"",null,null,"",null,null,null,null,null,null,null,2.5,null,null,null,2.5,null,null,2]
[7,null,null,null,"",null,null,"",null,null,null,null,null,null,null,3,null,null,null,3,null,null,2.5]
[8,null,null,null,"",null,null,"",null,null,null,null,null,null,null,3.5,null,null,null,3.5,null,null,3]
[9,null,null,null,"",null,null,"",null,null,null,null,null,null,null,4,null,null,null,4,null,null,"Le jugement est pertinent"]
[10,null,null,null,"",null,null,"",null,null,null,null,null,null,null,"L'enchaînement est construit",null,null,null,"La fluiidité caractérise l'activité du gymnaste",null,null,3.5]
[11,null,null,null,"",null,null,"",null,null,null,null,null,null,null,4.5,null,null,null,4.5,null,null,4]
[12,null,null,null,"",null,null,"",null,null,null,null,null,null,null,5,null,null,null,5]
[13,null,null,null,"",null,null,"",null,null,null,null,null,null,null,6,null,null,null,6]
[14,null,null,null,"",null,null,"",null,null,null,null,null,null,null,"L'enchaînement est riche et original",null,null,null,"L'enchaînement organise l'activité du gymnaste"]
[15,null,null,null,"",null,null,"",null,null,null,null,null,null,null,6.5,null,null,null,6.5]
[16,null,null,null,"",null,null,"",null,null,null,null,null,null,null,7,null,null,null,7]
[17,null,null,null,"",null,null,"",null,null,null,null,null,null,null,7.5,null,null,null,7.5]
[18,null,null,null,"",null,null,"",null,null,null,null,null,null,null,8,null,null,null,8]
[19,null,null,null,"",null,null,""]
[20,null,null,null,"",null,null,""]
[21,null,null,null,"",null,null,""]
[22,null,null,null,"",null,null,""]
[23,null,null,null,"",null,null,""]
[24,null,null,null,"",null,null,""]
[25,null,null,null,"",null,null,""]
[26,null,null,null,"",null,null,""]
[27,null,null,null,"",null,null,""]
[28,null,null,null,"",null,null,""]
[29,null,null,null,"",null,null,""]
[30,null,null,null,"",null,null,""]
[null,null,null,"Moyenne générale",{"$f":"IF(E6=\"\",\"\",AVERAGE($E$6:$E$35))","v":""}]
[null,null,null,"Moyenne filles",{"$f":"IF(E6=\"\",\"\",IF(C6=\"\",\"\",AVERAGEIF($C$6:$C$35,\"F\",$E$6:$E$35)))","v":""}]
[null,null,null,"Moyenne garçons",{"$f":"IF(E7=\"\",\"\",IF(C6=\"\",\"\",AVERAGEIF($C$6:$C$35,\"M\",$E$6:$E$35)))","v":""}]

{"sheet":"Référentiel","index":1,"n_rows":0,"n_cols":0,"rows_kept":0,"cut":false,"hidden":false,"merged":[]}